Cogmind - Beta 9.1 @@@ ROGUE MODE // 2019.11.11 @ 15:19:34 Player: MrPainting Result: Destroyed by G-47 Trooper with Particle Gun Performance ------------- Evolutions (2) 1000 Regions Visited (5) 1000 Robots Destroyed (22) 110 Value Destroyed (797) 797 Prototype IDs (2) 40 Alien Tech Used (0) 0 Bonus (300) 300 TOTAL SCORE: 3247 Bonus ------- Aligned with FarCom 300 Cogmind --------- Core Integrity 0/550 Matter 265/300 Energy 57/100 System Corruption 0% Temperature Cool (9) Location -8/Materials Parts ------- Power (1) Propulsion (4) Utility (4) Medium Storage Unit System Shield Weapon (2) Great Maul Inventory (8) High-capacity Matter Pod (200) Advanced Terrain Scanner XL Autogun Array Peak State ------------ Power Cooled Ion Engine Propulsion Light Treads Armored Treads Hover Unit Hover Unit Utility Improved Heat Sink Medium Storage Unit Improved Light Armor Plating Hacking Suite Weapon Particle Gun Light Assault Rifle Inventory High-capacity Matter Pod Advanced Terrain Scanner XL Autogun Array [Rating: 26] Favorites ----------- Power Ion Engine Engine Ion Engine Propulsion Aluminum Leg Treads Light Treads Leg Aluminum Leg Hover Unit Hover Unit Utility Medium Storage Unit Device Heat Sink Storage Medium Storage Unit Hackware Hacking Suite Protection Improved Light Armor Plating Weapon Small Laser Energy Gun Small Laser Energy Cannon Ion Cannon Ballistic Gun Light Assault Rifle Special Weapon Welding Torch Impact Weapon Great Maul Build | -11 -10 -10 -10 -9 -8 ------- Run | Scr Mat Min Exi Min Mat Slots Evolved 4 | . . . . . 4 Power . | . . . . . . Propulsion 2 | . . . . . 2 Utility 2 | . . . . . 2 Weapon . | . . . . . . Parts Attached 28 | 5 2 . 1 . 20 Power 2 | 1 . . . . 1 Engine 2 | 1 . . . . 1 Core . | . . . . . . Reactor . | . . . . . . Propulsion 10 | 2 . . . . 8 Treads 4 | . . . . . 4 Leg 4 | 2 . . . . 2 Wheel . | . . . . . . Hover 2 | . . . . . 2 Flight . | . . . . . . Utility 7 | . 1 . 1 . 5 Device 3 | . 1 . . . 2 Storage 1 | . . . 1 . . Processor . | . . . . . . Hackware 2 | . . . . . 2 Protection 1 | . . . . . 1 Artifact . | . . . . . . Weapon 9 | 2 1 . . . 6 Energy Gun 4 | 2 . . . . 2 Energy Cannon 1 | . . . . . 1 Ballistic Gun 2 | . 1 . . . 1 Ballistic Cannon . | . . . . . . Launcher . | . . . . . . Special Weapon 1 | . . . . . 1 Impact Weapon 1 | . . . . . 1 Slashing Weapon . | . . . . . . Piercing Weapon . | . . . . . . Special Melee Weapon . | . . . . . . Unidentified Prototypes 2 | . . . . . 2 Parts Lost 23 | . 1 . . . 22 Power 1 | . . . . . 1 Propulsion 10 | . . . . . 10 Utility 4 | . . . . . 4 Weapon 8 | . 1 . . . 7 Highest Loss Streak 8 | . 1 . . . 8 Average Slot Usage (%) 76 | . 70 85 91 100 64 Engine 11 | . 14 14 14 14 6 Treads 3 | . . . . . 9 Leg 20 | . 28 28 28 28 9 Device 9 | . . 14 14 14 9 Storage 6 | . . . 6 14 9 Hackware 2 | . . . . . 6 Protection 1 | . . . . . 2 Energy Gun 13 | . 26 14 14 14 4 Ballistic Gun 7 | . . 14 14 14 6 Naked Turns . | . . . . . . Heaviest Build 24 | 8 8 8 16 16 24 Greatest Support 40 | 20 20 20 20 20 40 Greatest Overweight (x) 3 | 2 . . . . 3 Average Overweight (x) . | . . . . . . Largest Inventory Capacity 8 | 4 4 4 8 8 8 Average Capacity 6 | 4 4 4 5 8 8 Most Carried 8 | . 4 4 8 8 8 Average Carried 5 | . 2 4 5 8 7 Final Capacity 8 | 4 4 4 8 8 8 Final Carried 8 | . 4 4 8 8 6 Class Distribution -------------------- 79% | Mutant 17% | Skirmisher 3% | Scavenger-Mutant Dominant Class ---------------- Mutant | -10/Materials Mutant | -10/Mines Mutant | -10/Exiles Mutant | -9/Mines Skirmisher | -8/Materials Resources | -11 -10 -10 -10 -9 -8 ----------- Run | Scr Mat Min Exi Min Mat Matter Collected 665 | 221 206 34 14 . 190 Remotely . | . . . . . . Salvage Created 885 | . 214 . . . 671 Parts 53 | . 13 . . . 40 Haulers Intercepted 1 | . 1 . . . . Recyclers Shooed 2 | . . . . . 2 Parts Field Recycled . | . . . . . . Retrieved Matter . | . . . . . . Parts Self-Destructed . | . . . . . . Prevented . | . . . . . . Kills | -11 -10 -10 -10 -9 -8 ------- Run | Scr Mat Min Exi Min Mat Combat Hostiles Destroyed 18 | . 3 . . . 15 Guns 15 | . 3 . . . 12 Cannons 1 | . . . . . 1 AOE 1 | . . . . . 1 Classes Destroyed 7 | . 3 . . . 4 Builder 1 | . . . . . 1 Hauler 1 | . 1 . . . . Operator 1 | . . . . . 1 Watcher 1 | . 1 . . . . Swarmer 2 | . . . . . 2 Grunt 12 | . 3 . . . 9 Sentry 4 | . . . . . 4 Best Kill Streak 3 | . 2 . . . 3 Combat Bots Only 3 | . 2 . . . 3 Max Kills in Single Turn 1 | . 1 . . . 1 Gunslinging . | . . . . . . Exploded 1 | . . . . . 1 Melee . | . . . . . . Uniques/NPCs Destroyed . | . . . . . . Combat | -11 -10 -10 -10 -9 -8 -------- Run | Scr Mat Min Exi Min Mat Damage Taken 2923 | . 120 . . . 2803 Core 598 | . 37 . . . 561 Absorbed by Shields . | . . . . . . Core Remaining (%) 92 | 100 . . . 85 . Volleys Fired 101 | . 25 . . . 76 Largest 2 | . 2 . . . 2 Hottest 90 | . 90 . . . 85 Shots Fired 154 | . 46 . . . 108 Gun 145 | . 46 . . . 99 Cannon 6 | . . . . . 6 Launcher . | . . . . . . Special 3 | . . . . . 3 Kinetic 66 | . . . . . 66 Thermal 88 | . 46 . . . 42 Explosive . | . . . . . . Electromagnetic . | . . . . . . Robot Hit Streak 18 | . 10 . . . 18 Robot Miss Streak 4 | . 2 . . . 4 Penetration Max . | . . . . . . Secondary Targets . | . . . . . . Shots Hit Robots 121 | . 35 . . . 86 Core Hits 51 | . 12 . . . 39 Critical Hits 1 | . . . . . 1 Critical Kills 1 | . . . . . 1 Critical Parts Destroyed . | . . . . . . Melee Attacks 4 | . . . . . 4 Impact 4 | . . . . . 4 Slashing . | . . . . . . Piercing . | . . . . . . Sneak Attacks 1 | . . . . . 1 Combat Hostiles . | . . . . . . Follow-up Attacks . | . . . . . . Damage Inflicted 1730 | . 358 . . . 1372 Guns 1307 | . 358 . . . 949 Cannons 66 | . . . . . 66 Explosions 226 | . . . . . 226 Melee 118 | . . . . . 118 Ramming 5 | . . . . . 5 Kinetic 602 | . . . . . 602 Thermal 1005 | . 358 . . . 647 Explosive . | . . . . . . Electromagnetic . | . . . . . . Impact 118 | . . . . . 118 Slashing . | . . . . . . Piercing . | . . . . . . Highest Corruption . | . . . . . . Average Corruption . | . . . . . . Corruption Purged . | . . . . . . Overload Shots . | . . . . . . Overflow Damage 76 | . . . . . 76 Projectiles . | . . . . . . Explosions 23 | . . . . . 23 Melee 53 | . . . . . 53 Knockbacks 3 | . . . . . 3 Impact 3 | . . . . . 3 Kinetic . | . . . . . . Secondary . | . . . . . . Self-Inflicted Damage 18 | . . . . . 18 Shots 1 | . . . . . 1 Rammed 3 | . . . . . 3 Targets Rammed 3 | . . . . . 3 Kicked . | . . . . . . Crushed . | . . . . . . Highest Temperature 205 | . 171 . . . 205 Average Temperature 65 | . 55 . . . 76 Received Heat Transfer 987 | . 69 . . . 918 Siege Activations . | . . . . . . Robots Corrupted . | . . . . . . Combat Hostiles . | . . . . . . Parts Fried 3 | . . . . . 3 Impact Corruptions 2 | . . . . . 2 Robots Melted . | . . . . . . Combat Hostiles . | . . . . . . Parts Melted 1 | . 1 . . . . Heat Transferred 2093 | . 955 . . . 1138 Parts Sabotaged . | . . . . . . Parts Stolen . | . . . . . . Parts Stripped . | . . . . . . Power Chain Reactions . | . . . . . . Missiles Intercepted . | . . . . . . Alert | -11 -10 -10 -10 -9 -8 ------- Run | Scr Mat Min Exi Min Mat Peak Influence 203 | . 104 . . . 203 Average Influence 46 | . 35 . . . 67 Maximum Alert Level 1 | . . . . . 1 Low Security (%) 99 | . . . . . . Level 1 . | . . . . . . Level 2 . | . . . . . . Level 3 . | . . . . . . Level 4 . | . . . . . . Level 5 . | . . . . . . High Security . | . . . . . . Max Security . | . . . . . . Squads Dispatched 5 | . 1 . . . 4 Investigation 1 | . 1 . . . . Extermination . | . . . . . . Reinforcement 4 | . . . . . 4 Assault . | . . . . . . Garrison . | . . . . . . Intercept . | . . . . . . Construction Impeded 3 | . . . . . 3 Haulers Reinforced . | . . . . . . Stealth | -11 -10 -10 -10 -9 -8 --------- Run | Scr Mat Min Exi Min Mat Distress Signals 6 | . 2 . . . 4 Communications Jammed . | . . . . . . Distress Signals . | . . . . . . Times Spotted 31 | . 6 . . . 25 Peak Tracking Total 9 | . 4 . . . 9 Tactical Retreats 3 | . 1 . . . 2 Traps | -11 -10 -10 -10 -9 -8 ------- Run | Scr Mat Min Exi Min Mat Traps Triggered . | . . . . . . Indirectly . | . . . . . . Trap Hack Attempts . | . . . . . . Triggered . | . . . . . . Disarmed . | . . . . . . Reprogrammed . | . . . . . . Reused . | . . . . . . Traps Extracted . | . . . . . . Installed . | . . . . . . Triggered . | . . . . . . Machines | -11 -10 -10 -10 -9 -8 ---------- Run | Scr Mat Min Exi Min Mat Machines Disabled 2 | . . . . . 2 Max in Single Turn 2 | . . . . . 2 Machines Sabotaged . | . . . . . . Garrisons Compromised . | . . . . . . Overloaded Fab Kills . | . . . . . . Fab Network Shutdowns . | . . . . . . Hacking | -11 -10 -10 -10 -9 -8 --------- Run | Scr Mat Min Exi Min Mat Machines Accessed 1 | . . . . . 1 Terminals 1 | . . . . . 1 Fabricators . | . . . . . . Repair Stations . | . . . . . . Recycling Units . | . . . . . . Scanalyzers . | . . . . . . Garrison Access . | . . . . . . Total Hacks 2 | . . . . . 2 Successful 1 | . . . . . 1 Failed 1 | . . . . . 1 Catastrophic . | . . . . . . Database Lockouts . | . . . . . . Manual 3 | . . . 1 . 2 Terminals 2 | . . . . . 2 Fabricators . | . . . . . . Repair Stations . | . . . . . . Recycling Units . | . . . . . . Scanalyzers . | . . . . . . Garrison Access . | . . . . . . Terminal Hacks . | . . . . . . Fabricator Hacks . | . . . . . . Repair Station Hacks . | . . . . . . Recycling Unit Hacks . | . . . . . . Scanalyzer . | . . . . . . Garrison Access Hacks . | . . . . . . Unauthorized Hacks 3 | . . . . . 3 Terminals 1 | . . . . . 1 Botnet 1 | . . . . . 1 Fabricators . | . . . . . . Repair Stations . | . . . . . . Recycling Units . | . . . . . . Scanalyzers . | . . . . . . Garrison Access . | . . . . . . Data Cores Recovered . | . . . . . . Used . | . . . . . . Hacking Detections 1 | . . . . . 1 Full Trace Events . | . . . . . . Feedback Events . | . . . . . . Feedback Blocked . | . . . . . . Robot Schematics Acquired . | . . . . . . Robots Built . | . . . . . . Matter . | . . . . . . Time . | . . . . . . Total Robot Build Rating . | . . . . . . Part Schematics Acquired . | . . . . . . Parts Built . | . . . . . . Matter . | . . . . . . Time . | . . . . . . Total Part Build Rating . | . . . . . . Parts Repaired . | . . . . . . Time . | . . . . . . Parts Recycled . | . . . . . . Recycled Matter . | . . . . . . Retrieved Matter . | . . . . . . Retrieved Components . | . . . . . . Parts Scanalyzed . | . . . . . . Part Schematics Acquired . | . . . . . . Parts Damaged . | . . . . . . Bothacking | -11 -10 -10 -10 -9 -8 ------------ Run | Scr Mat Min Exi Min Mat Used RIF Installer . | . . . . . . Robots Hacked . | . . . . . . Non-combat . | . . . . . . Combat . | . . . . . . Robot Hacks Applied . | . . . . . . Relay Couplers Released . | . . . . . . Robots Rewired . | . . . . . . Allies Hacked . | . . . . . . Hacks Repelled . | . . . . . . Allies | -11 -10 -10 -10 -9 -8 -------- Run | Scr Mat Min Exi Min Mat Total Allies . | . . . . . . Largest Group . | . . . . . . Highest-Rated Group . | . . . . . . Highest-Rated Ally . | . . . . . . Total Orders . | . . . . . . Ally Attacks . | . . . . . . Total Damage . | . . . . . . Kills . | . . . . . . Allies Corrupted . | . . . . . . Allies Melted . | . . . . . . Intel | -11 -10 -10 -10 -9 -8 ------- Run | Scr Mat Min Exi Min Mat Robot Analysis Total . | . . . . . . Derelict Logs Recovered . | . . . . . . Drone Launches . | . . . . . . Drone Recoveries . | . . . . . . Exploration | -11 -10 -10 -10 -9 -8 ------------- Run | Scr Mat Min Exi Min Mat Turns Passed 1852 | 56 401 70 506 101 718 Spaces Moved 1191 | 45 268 59 420 78 321 Core 55 | 17 . . . . 38 Treads 148 | . . . . . 148 Legs 988 | 28 268 59 420 78 135 Wheels . | . . . . . . Hover . | . . . . . . Flight . | . . . . . . Fastest Speed 50 | 50 120 120 120 120 120 Average Speed 125 | 109 120 120 120 120 143 Slowest Speed 200 | 150 120 120 120 120 200 Overloaded Moves . | . . . . . . Propulsion Burnouts . | . . . . . . Robots Hopped . | . . . . . . Cave-ins Triggered . | . . . . . . Exploration Rate (%) 30 | 3 47 12 69 24 30 Regions Visited 5 Branch Regions 3 Pre-discovered Areas . | . . . . . . Known Exits Taken . | . . . . . . Unknown Exits Taken 5 | 1 1 1 1 1 . Scrap Searched 2 | . . 1 . 1 . Spaces Dug . | . . . . . . Terrain Destroyed 22 | . . . . . 22 Melee . | . . . . . . Projectile 1 | . . . . . 1 AOE 21 | . . . . . 21 Actions | -11 -10 -10 -10 -9 -8 --------- Run | Scr Mat Min Exi Min Mat Total 1377 | 49 301 58 421 85 463 Wait 44 | . 2 . . 8 34 Move 1186 | 44 267 58 419 77 321 Hop . | . . . . . . Pick Up 9 | . 5 . 1 . 3 Fast Attach 21 | 5 1 . 1 . 14 Attach 5 | . 1 . . . 4 Detach . | . . . . . . Swap 2 | . . . . . 2 Drop 2 | . . . . . 2 Fire 101 | . 25 . . . 76 Melee 4 | . . . . . 4 Ram 2 | . . . . . 2 Kick . | . . . . . . Crush 1 | . . . . . 1 Escape Stasis . | . . . . . . Rewire . | . . . . . . Trap . | . . . . . . Miscellaneous . | . . . . . . Route ------- -11/Scrapyard -10/Materials (discovered 2 exits: [*Mat] / [*Min]) -10/Mines -10/Exiles -9/Mines (discovered 2 exits: *Mat x2) -8/Materials History --------- Turn | Location | Event 24 | -11/Scrapyard | Discovered new exit (range 14) 57 | -11/Scrapyard | Entered Materials 305 | -10/Materials | Build established: Mutant 312 | -10/Materials | Discovered new exit (range 4) 446 | -10/Materials | Discovered new exit (range 6) 458 | -10/Materials | Entered Mines 523 | -10/Mines | Deemed a non-threat by the Exiles lab entrance 523 | -10/Mines | Discovered new exit (range 5) 528 | -10/Mines | Entered Exiles 557 | -10/Exiles | Met 8R-AWN 578 | -10/Exiles | Met EX-HEX 614 | -10/Exiles | Met EX-BIN 635 | -10/Exiles | Aligned with FarCom system 636 | -10/Exiles | Given EX-Vault access code 664 | -10/Exiles | Opened EX-Vault 684 | -10/Exiles | Warned to stay clear of 0b10 Research branches 760 | -10/Exiles | Met EX-DEC 898 | -10/Exiles | Found Prototype Ballistic Gun 1019 | -10/Exiles | Discovered new exit (range 14) 1034 | -10/Exiles | Left Exiles lab with XL Autogun Array 1034 | -10/Exiles | Entered Mines 1057 | -9/Mines | Discovered new exit (range 11) 1061 | -9/Mines | Discovered new exit (range 14) 1113 | -9/Mines | Met a Derelict bent on vengeance 1135 | -9/Mines | Entered Materials 1135 | -8/Materials | Evolved 4 slots: Propulsion x2, Utility x2 1634 | -8/Materials | Lost 5 parts (3n2w) 1715 | -8/Materials | Core integrity fell below 50% 1724 | -8/Materials | Lost 8 parts (1p2n2u3w) 1814 | -8/Materials | Core integrity fell below 20% 1853 | -8/Materials | Destroyed by G-47 Trooper with Particle Gun Last Messages --------------- 01835_ Slug penetrates Wall. 01838_ G-47 Trooper knocked back. 01842_ Destroyed Lgt. Nuclear Core. 01842_ G-47 Trooper system corrupted by crushing effect. 01842_ G-47 Trooper knocked back. 01843_ G-47 Trooper system terminally corrupted. 01843_ Imp. Heat Sink fried. 01843_ Aluminum Leg fried. 01848_ Penetrated by Slug. 01848_ Carbon-fiber Leg destroyed. 01849_ C-30 ARC bursts open, deploying its payload. 01849_ G-47 Trooper unfolds itself. 01850_ K-01 Serf collects debris. 01850_ Sneak attack on K-01 Serf. 01850_ Destroyed Sml. Matter Pod. 01850_ K-01 Serf system corrupted by crushing effect. 01850_ K-01 Serf knocked back. 01853_ Penetrated by Slug. 01853_ Carbon-fiber Leg destroyed. 01853_ B-36 Bruiser destroyed. Map ----- +----------------------------------------------------+ | ?????????????????????????????????????????????????? | | ?????????????????????????????????????????????????? | | ?????????????????????????????????????????????????? | | ???????????????????????????????????????????? ?? ?? | | ??????????????????????????????????????????? ???? | | ????????????????????????????????????#?????# ? ? | | ??????????????????????????????????????????# ?? ? | | ????????????????????????????????????????? # ???? | | ??????????????????????????????????????? ??# ???? | | ??????????????????????????Y??????"??????? #" ??? | | ?????????????????????????????????????? ???#% ? ?? | | ????????????????????????????????? ????????#" #??? | | ??????????????????????????????????????????# #??# | | ??????????????????????????????????????????# #??? | | ??????????????????????????????????????##### # "Y | | ????????????????????????????? ????????##!! + | | ??????????????????????????????????????#! #? | | ??????????????????????????????????????#! #??# | | ????????????????????????Y????? ???????#! #?## | | ???????????????????###########??##????#! %### | | ???????????????????# ![[ #? ##???##!! %%= | | ???????????????????# / ![[ # #?????#### %= | | ???????????????????# ![[ g/ ???????#???# % | | ???????????????????? g #???????????# " " | | ???????????????????? * =%%k?????????????# """"" | | ????????????????#########@##?????#???????# """"" | | ????????????????# ! %#/!=###??????????## """"" | | ????????????????# =%# #?????+???????# """ | | ??????Y?????????# [+ #???? ?????? ?# | | ????????????????#= # #?????????#???# | | ????????????????# # h #?????????# ##### | | ????????????????# # #?????????# ####??# % | | ????????????????######## #?????#?#?##???#????#% | | ???????????????????????# #???????????????????# | | ???????????????# ??????# #????????#???#??????# % | | ???????????????# ????# #???????????????????#%% | | ???????????????? """ ??# #??w????????????????# % | | ???????????????# """ # #???????????? ??????#+# | | ???????????????# """ + #???????????????????#%# | | ???????????????# # #???????? ?????????#%# | | ???????????????# ??# #??????? ?????????# # | | ???????????????# ????# #??????? ?????????# # | | ???????????????# ??????# #??????? ?????????# # | | ???????????????????????# #???????? ?????????# # | | ???????????????????????# #???????? ?????????# # | | ??????????????????????## ##??????? ?????????# # | | ???????????????????#??# #???????# #????????# | | ???????????????????# ## #???????# #????????# | | ???????????????????# #???????# ##+#?????# | | ???????????????????#### #???????# ####### | +----------------------------------------------------+ Best States ------------- Heat Dissipation 45 Energy Generation 14 Energy Capacity 280 Matter Stores 300 Matter Capacity 300 Sight Range 16 Terrain Scan Range 20 Terrain Scan Density 10 Armor Coverage 150 Evasion (%) 50 Recoil Reduction 2 Offensive Hacking 10 Defensive Hacking 10 Item Schematics ----------------- None Robot Schematics ------------------ None Fabricated ------------ Nothing Alien Tech Used ----------------- None Achievements -------------- None Challenges ------------ None Game ------ Seed StormTrapLeg Manual? 0 Play Time 00:14:26 Cumulative 116.4 hours Start 2019.11.11 @ 15:08:12 End 2019.11.11 @ 15:19:34 Sessions 1 Manual Loads 0 Difficulty Rogue Special Mode None Game No. 209 Rogue 209 Adventurer 0 Explorer 0 Win Type - Total 0 Types 0/0/0/0/0/0/0 Lore% 33 Gallery% 50 Achievement% 34 Wizard Run 0 Options --------- ASCII 0 Keyboard 0 Movement Mouse Keybinds 0 Fullscreen 1 Font 18/SmallcapsGlow Map View 76x50 Tactical HUD 1 Map Filters NONE Filters NONE Steam 1 RUN: 7764e472-7250-40a2-9fcc-c4a6251ad7c0